Cogmind - Beta 15 @@@ ROGUE MODE // 2025.09.14 @ 20:10:18 Player: BLINGO GOVLIN Result: Destroyed by 43-232(R) with Subdweller Machine Gun Performance ------------- Evolutions (0) 0 Regions Visited (2) 400 Robots Destroyed (16) 80 Value Destroyed (366) 366 Prototype IDs (4) 80 Alien Tech Used (0) 0 Bonus (0) 0 TOTAL SCORE: 926 Bonus ------- None Cogmind --------- Core Integrity 0/250 Matter 280/300 Energy 62/100 System Corruption 0% Temperature Cool (0) Movement Core (350) Ox6 Location -10/Subcaves Parts ------- > --- POWER (1) -------- (None) > --- PROPULSION (2) --- (None) > --- UTILITY (2) ------ Medium Storage Unit Terrain Scanner > --- WEAPON (2) ------- Subdweller Machine Gun Subdweller Machine Gun > --- INVENTORY (10) --- Light Treads Light Treads Light Treads Large Storage Unit Scrap Shield Mining Laser Mining Laser Scrap Shield Fragment (49) Scrap Shield Fragment (45) Peak State ------------ > --- POWER ------------ Ion Engine > --- PROPULSION ------- Light Treads Light Treads > --- UTILITY ---------- Medium Storage Unit Terrain Scanner > --- WEAPON ----------- Medium Laser Subdweller Machine Gun > --- INVENTORY -------- Light Treads Light Treads Light Treads Large Storage Unit Small Laser Mining Laser Mining Laser Scrap Shield Fragment Scrap Shield Fragment [Rating: 9] Favorites ----------- Power Ion Engine Engine Ion Engine Propulsion Light Treads Treads Light Treads Utility Medium Storage Unit Device Terrain Scanner Storage Medium Storage Unit Protection Light Armor Plating Weapon Small Laser Energy Gun Small Laser Ballistic Gun Assault Rifle Build | -11 -10 -10 ------- Run | Yrd Mat Sub Slots Evolved . | . . . Power . | . . . Propulsion . | . . . Utility . | . . . Weapon . | . . . Parts Attached 14 | 6 3 5 Power 2 | 1 1 . Engine 2 | 1 1 . Core . | . . . Reactor . | . . . Propulsion 2 | 2 . . Treads 2 | 2 . . Leg . | . . . Wheel . | . . . Hover . | . . . Flight . | . . . Utility 4 | 1 2 1 Device 1 | . . 1 Storage 2 | 1 1 . Processor . | . . . Hackware . | . . . Protection 1 | . 1 . Artifact . | . . . Weapon 6 | 2 . 4 Energy Gun 2 | 1 . 1 Energy Cannon . | . . . Ballistic Gun 4 | 1 . 3 Ballistic Cannon . | . . . Launcher . | . . . Special Weapon . | . . . Impact Weapon . | . . . Slashing Weapon . | . . . Piercing Weapon . | . . . Special Melee Weapon . | . . . Unidentified Prototypes . | . . . Parts Lost 7 | . 2 5 Power 2 | . 1 1 Propulsion 2 | . . 2 Utility 1 | . 1 . Weapon 2 | . . 2 Highest Loss Streak 4 | . 2 4 To Critical Strikes . | . . . Average Backups 6 | 1 6 6 Power . | . . . Propulsion 2 | . 2 3 Utility 1 | . 1 1 Weapon 2 | . 2 2 Tool/Special . | . . . Unused Backups 7 | . . 7 Power . | . . . Propulsion 3 | . . 3 Utility 2 | . . 2 Weapon 2 | . . 2 Tool/Special . | . . . Average Slot Usage (%) 95 | . 94 96 Engine 13 | . 13 13 Treads 27 | . 28 25 Device 3 | . . 14 Storage 14 | . 14 14 Protection 6 | . 9 . Energy Gun 14 | . 14 14 Ballistic Gun 13 | . 14 12 Peak Build Rating 9 | 6 7 9 Average Rating 6 | 4 6 7 On Entrance 4 | . 6 6 Naked Turns . | . . . Heaviest Build 22 | 13 21 22 Greatest Support 40 | 40 40 40 Greatest Overweight (x) 5 | . . 5 Average Overweight (x) . | . . . Largest Inventory Capacity 10 | 8 10 10 Average Capacity 9 | 7 9 10 Most Carried 10 | 3 9 10 Average Carried 6 | 1 6 7 Final Capacity 10 | 8 10 10 Final Carried 10 | 2 8 10 Class Distribution -------------------- 100% | Mutant Dominant Class ---------------- Mutant | -10/Materials Mutant | -10/Subcaves Resources | -11 -10 -10 ----------- Run | Yrd Mat Sub Matter Collected 451 | 217 156 78 Remotely . | . . . Salvage Created 475 | . 295 180 Parts 31 | . 19 12 Haulers Intercepted 2 | . 2 . Recyclers Shooed . | . . . Parts Field Recycled . | . . . Retrieved Matter . | . . . Parts Self-Destructed . | . . . Prevented . | . . . Kills | -11 -10 -10 ------- Run | Yrd Mat Sub Combat Hostiles Destroyed 13 | . 8 5 Guns 13 | . 8 5 Classes Destroyed 6 | . 4 2 Hauler 2 | . 2 . Watcher 1 | . 1 . Swarmer 6 | . 6 . Grunt 2 | . 2 . Sentry 1 | . . 1 Subdweller 4 | . . 4 Best Kill Streak 3 | . 3 2 Combat Bots Only 3 | . 3 2 Max Kills in Single Turn 2 | . 2 1 Gunslinging 1 | . 1 . Exploded . | . . . Melee . | . . . Uniques/NPCs Destroyed . | . . . Combat | -11 -10 -10 -------- Run | Yrd Mat Sub Hostile Shots Fired 115 | . 53 62 Missed 36 | . 13 23 Hits 79 | . 40 39 Projectile 79 | . 40 39 Critical Strikes 1 | . 1 . Damage Taken 1146 | . 376 770 Core 257 | . 50 207 Absorbed by Shields . | . . . Core Remaining (%) 100 | 100 . . Volleys Fired 64 | . 31 33 Largest 2 | . 2 2 Hottest 90 | . 60 90 Shots Fired 125 | . 62 63 Gun 125 | . 62 63 Cannon . | . . . Launcher . | . . . Special . | . . . Kinetic 55 | . 31 24 Thermal 70 | . 31 39 Explosive . | . . . Electromagnetic . | . . . Robot Hit Streak 14 | . 9 14 Robot Miss Streak 2 | . 2 1 Penetration Max . | . . . Secondary Targets 4 | . 3 1 Max Gunslinging Chain 1 | . 1 1 Shots Hit Robots 96 | . 40 56 Core Hits 26 | . 17 9 Critical Kills . | . . . Critical Parts Destroyed . | . . . Critical Strikes 1 | . . 1 Burn 1 | . . 1 Melee Attacks . | . . . Impact . | . . . Slashing . | . . . Piercing . | . . . Sneak Attacks . | . . . Combat Hostiles . | . . . Follow-up Attacks . | . . . Damage Inflicted 1167 | . 464 703 Guns 1163 | . 460 703 Cannons . | . . . Explosions . | . . . Melee . | . . . Ramming 4 | . 4 . Kinetic 513 | . 201 312 Thermal 650 | . 259 391 Explosive . | . . . Electromagnetic . | . . . Impact . | . . . Slashing . | . . . Piercing . | . . . Highest Corruption . | . . . Average Corruption . | . . . Corruption Purged . | . . . Corruption Blocked . | . . . Overload Shots . | . . . Overflow Damage . | . . . Projectiles . | . . . Explosions . | . . . Melee . | . . . Knockbacks . | . . . Impact . | . . . Kinetic . | . . . Secondary . | . . . Self-Inflicted Damage . | . . . Shots . | . . . Rammed 2 | . 2 . Targets Rammed 2 | . 2 . Kicked . | . . . Crushed . | . . . Highest Temperature 135 | . 135 . Average Temperature 35 | . 35 . Received Heat Transfer 108 | . 99 9 Siege Activations . | . . . Martial Activations . | . . . Shielding Activations . | . . . Robots Disrupted . | . . . Combat Hostiles . | . . . Robots Corrupted . | . . . Combat Hostiles . | . . . Parts Fried . | . . . Impact Corruptions . | . . . Robots Melted . | . . . Combat Hostiles . | . . . Parts Melted 3 | . 1 2 Heat Transferred 1690 | . 575 1115 Parts Sabotaged . | . . . Parts Stolen . | . . . Parts Stripped . | . . . Power Chain Reactions . | . . . Alert | -11 -10 -10 ------- Run | Yrd Mat Sub Maximum Alert Level . | . . . Low Security (%) 100 | 100 100 . Level 1 . | . . . Level 2 . | . . . Level 3 . | . . . Level 4 . | . . . Level 5 . | . . . High Security . | . . . Max Security . | . . . Peak Influence 76 | . 76 . Initial . | . . . Average 17 | . 18 . Influence Increases 272 | . 252 20 Destroy 0b10 Robot/C 180 | . 160 20 Destroy 0b10 Robot/NC 15 | . 15 . Destroy Leader 36 | . 36 . Successful Hack 26 | . 26 . Lose Combat Pursuer 15 | . 15 . Influence Decreases 272 | . 252 20 Time Decay 252 | . 232 20 Lost Part 20 | . 20 . Squads Dispatched . | . . . Investigation . | . . . Extermination . | . . . Reinforcement . | . . . Assault . | . . . Garrison . | . . . Intercept . | . . . Searches Triggered . | . . . Construction Impeded . | . . . Haulers Reinforced . | . . . Active Scanning Responses . | . . . Cargo Convoy Interrupts . | . . . Stealth | -11 -10 -10 --------- Run | Yrd Mat Sub Distress Signals 1 | . 1 . Communications Jammed . | . . . Distress Signals . | . . . Times Spotted 22 | . 16 6 Peak Tracking Total 3 | . 3 2 Tactical Retreats 1 | . 1 . Traps | -11 -10 -10 ------- Run | Yrd Mat Sub Traps Triggered . | . . . Indirectly . | . . . Trap Hack Attempts . | . . . Triggered . | . . . Disarmed . | . . . Reprogrammed . | . . . Reused . | . . . Traps Extracted . | . . . Installed . | . . . Triggered . | . . . Machines | -11 -10 -10 ---------- Run | Yrd Mat Sub Machines Disabled . | . . . Max in Single Turn . | . . . Machines Repaired . | . . . Machines Dismantled . | . . . Machines Sabotaged . | . . . Overloaded Fab Kills . | . . . Hacking | -11 -10 -10 --------- Run | Yrd Mat Sub Machines Accessed 7 | . 7 . Terminals 7 | . 7 . Fabricators . | . . . Repair Stations . | . . . Recycling Units . | . . . Scanalyzers . | . . . Garrison Access . | . . . Total Hacks 12 | . 12 . Successful 5 | . 5 . Failed 7 | . 7 . Catastrophic 2 | . 2 . Database Lockouts . | . . . Manual 6 | . 6 . Terminals 12 | . 12 . Fabricators . | . . . Repair Stations . | . . . Recycling Units . | . . . Scanalyzers . | . . . Garrison Access . | . . . Terminal Hacks 4 | . 4 . Prototype ID Bank 2 | . 2 . Terminal Index 1 | . 1 . Dispatch Records 1 | . 1 . Fabricator Hacks . | . . . Repair Station Hacks . | . . . Recycling Unit Hacks . | . . . Scanalyzer . | . . . Garrison Access Hacks . | . . . Unauthorized Hacks 1 | . 1 . Terminals 1 | . 1 . Operators 1 | . 1 . Fabricators . | . . . Repair Stations . | . . . Recycling Units . | . . . Scanalyzers . | . . . Garrison Access . | . . . Data Cores Recovered . | . . . Used . | . . . Hacking Detections 4 | . 4 . Full Trace Events . | . . . Feedback Events . | . . . Feedback Blocked . | . . . Robot Schematics Acquired . | . . . Robots Built . | . . . Authchips . | . . . Time . | . . . Total Robot Build Rating . | . . . Part Schematics Acquired . | . . . Parts Built . | . . . Authchips . | . . . Time . | . . . Total Part Build Rating . | . . . Parts Repaired . | . . . Time . | . . . Parts Recycled . | . . . Recycled Matter . | . . . Retrieved Matter . | . . . Retrieved Components . | . . . Parts Scanalyzed . | . . . Part Schematics Acquired . | . . . Parts Damaged . | . . . Bothacking | -11 -10 -10 ------------ Run | Yrd Mat Sub Used RIF Installer . | . . . Robots Hacked . | . . . Non-combat . | . . . Combat . | . . . Robot Hacks Applied . | . . . Relay Couplers Released . | . . . Fabnet Peak Effective % . | . . . Robots Rewired . | . . . Allies Hacked . | . . . Hacks Repelled . | . . . Allies | -11 -10 -10 -------- Run | Yrd Mat Sub Total Allies . | . . . Largest Group . | . . . Highest-Rated Group . | . . . Highest-Rated Ally . | . . . Total Orders . | . . . Ally Attacks . | . . . Total Damage . | . . . Kills . | . . . Allies Corrupted . | . . . Allies Melted . | . . . Intel | -11 -10 -10 ------- Run | Yrd Mat Sub Active Infowar (turns) 374 | . . 374 Terrain 374 | . . 374 Robot Analysis Total . | . . . Derelict Logs Recovered . | . . . Drone Launches . | . . . Drone Recoveries . | . . . Exploration | -11 -10 -10 ------------- Run | Yrd Mat Sub Turns Passed 1493 | 70 1049 374 Spaces Moved 756 | 41 560 155 Core 10 | 8 . 2 Treads 746 | 33 560 153 Legs . | . . . Wheels . | . . . Hover . | . . . Flight . | . . . Fastest Speed 50 | 50 160 160 Average Speed 159 | 138 160 161 Slowest Speed 300 | 160 160 300 Overloaded Moves . | . . . Propulsion Burnouts . | . . . Robots Hopped . | . . . Potential Cave-ins . | . . . Cave-ins Triggered . | . . . Exploration Rate (%) 32 | 5 73 18 Regions Visited 2 Branch Regions 1 Pre-discovered Areas . | . . . Known Exits Taken . | . . . Unknown Exits Taken 2 | 1 1 . Scrap Searched . | . . . Spaces Dug . | . . . Terrain Destroyed . | . . . Melee . | . . . Projectile . | . . . AOE . | . . . Terrain Rammed . | . . . Walls Destroyed . | . . . Machines Disabled . | . . . Actions | -11 -10 -10 --------- Run | Yrd Mat Sub Total 919 | 54 650 215 Wait 59 | . 45 14 Move 754 | 40 559 155 Hop . | . . . Pick Up 21 | 8 9 4 Fast Attach 2 | . . 2 Attach 10 | 6 2 2 Detach . | . . . Swap 3 | . 1 2 Drop 4 | . 1 3 Fire 64 | . 31 33 Melee . | . . . Ram . | . . . Kick . | . . . Crush 2 | . 2 . Escape Stasis . | . . . Rewire . | . . . Trap . | . . . Miscellaneous . | . . . Route ------- -11/Scrapyard -10/Materials (discovered 6 exits: [*Mat x3] / [*Min x2] / [*Sub]) -10/Subcaves History --------- Turn | Location | Event 3 | -11/Scrapyard | Discovered new exit (range 16) 71 | -11/Scrapyard | Entered Materials 262 | -10/Materials | Discovered new exit (range 11) 305 | -10/Materials | Build established: Mutant 353 | -10/Materials | Discovered new exit (range 12) 557 | -10/Materials | Discovered new exit (range 14) 679 | -10/Materials | Discovered new exit (range 8) 832 | -10/Materials | Discovered new exit (range 14) 915 | -10/Materials | Discovered new exit (range 9) 1120 | -10/Materials | Entered Subcaves 1239 | -10/Subcaves | A swath of the cavern ceiling suddenly collapsed 1401 | -10/Subcaves | Core integrity fell below 50% 1475 | -10/Subcaves | Core integrity fell below 20% 1494 | -10/Subcaves | Destroyed by 43-232(R) with Subdweller Machine Gun Last Messages --------------- 01406_ PA-3SE(R) destroyed. 01415_ VG-PPU(R) destroyed. 01421_ Acquired Scrap Shield Fragment. 01422_ Acquired 24 matter. 01425_ Acquired Scrap Shield Fragment. 01428_ Subatomizers dissect the Sub. Optics. 01428_ Dropped Sml. Laser. 01428_ Acquired Scrap Shield. 01431_ Dropped Sub. Machine Gun. 01460_ Lgt. Treads destroyed. 01475_ CT-FKI(R) destroyed. 01475_ Switching to secondary target: 43-232(R). 01480_ Ion Engine destroyed. 01481_ Sub. Machine Gun shoots sparks and powers down. 01486_ Acquired 9 matter. 01486_ Med. Laser destroyed. 01491_ Acquired Sub. Machine Gun. 01493_ Dropped Broken Sub. Machine Gun. 01493_ Acquired Broken Sub. Machine Gun. Map ----- +----------------------------------------------------+ | ????????????????????????????????# #??? | | ???????????????????????#?????#?## #???# | | ??????????????????????????????## ##??? # | | ???????????????????????????#???# #??? ### | | ???????????????????????????????# ####??? #?? | | ?????????????????????#????#????## #??????? ##?? | | ??????????????????????????????### #??????? ##??? | | ??????????????????????#??#?##?# #??????? #???? | | ??????????????????????????????# ###?????? #???? | | ??????????????????????????????# #???#?? ???? | | ????????????????????##??????### #????? ??? | | ???????????????????????????## !%=##???# ???? | | ??????????????????????????## % !#### ##????? | | ??????????????????#????????# [ " #?????? | | ?????????????????????#??#??## [ #?????? | | ???????????????????????????## ####????? | | ???????????????????????????## ### #??????? | | ???????????????????#???????# ##?? #??????? | | ???????????????????????????# ## ##??????#?#????? | | ???????????????????#???###### ###??????#???????? | | ???????????????????????#""## ##??#?????????????? | | ????????????????" ?????#"""# ##?#?????????????? | | ?????????????????" ???#"""## ##????#???????????? | | ?????????????????"" ##"" " #????????????????? | | ?????????????????#"" """R*& "##???????#????????? | | ?????????????????#" " @%! " #????????????????? | | ?????????????? " &#&# "##????????????????? | | ?????????????# ######?????????????????? | | ?????????????##### ??????????????????????? | | ?????????????????# ##??????????????????????? | | ???????????????? #????????????????????????? | | ?????????????? ???????????#?????????????? | | ????????????? ## ?? ??????????????????????? | | ????????????? ??## ?????????????????????????? | | ?????????????#????# ??????#???????????????????? | | ??????????????????# ??????????????????????????? | | ??????????????????# ##?????#????????????????????? | | ??????????????????# #????????????????????????????? | | ??????????????????##?????????????????????????????? | | ?????????????????????????????????????????????????? | | ?????????????????????????????????????????????????? | | ?????????????????????????????????????????????????? | | ?????????????????????????????????????????????????? | | ?????????????????????????????????????????????????? | | ?????????????????????????????????????????????????? | | ?????????????????????????????????????????????????? | | ?????????????????????????????????????????????????? | | ?????????????????????????????????????????????????? | | ?????????????????????????????????????????????????? | | ?????????????????????????????????????????????????? | +----------------------------------------------------+ Best States ------------- Heat Dissipation 25 Energy Generation 10 Energy Capacity 250 Matter Stores 300 Matter Capacity 300 Sight Range 16 Terrain Scan Range 14 Terrain Scan Density 10 Armor Coverage 150 Evasion (%) 40 Recoil Reduction 2 Item Schematics ----------------- None Robot Schematics ------------------ None Fabricated ------------ Nothing Repaired ---------- Nothing Alien Tech Used ----------------- None Achievements -------------- None Challenges ------------ None Game ------ Seed ScatterJunkInitializer Manual? 0 Play Time 00:10:19 Cumulative 33.2 hours Start 2025.09.14 @ 20:01:51 End 2025.09.14 @ 20:10:18 Sessions 1 Manual Loads 0 Difficulty Rogue Special Mode None Game No. 69 Rogue 69 Adventurer 0 Explorer 0 Win Type - Total 1 Types 1/0/0/0/0/0/0/0/0/0 Lore% 22 Gallery% 31 Achievement% 31 Wizard Run 0 Options --------- Layout 1 ASCII 0 Keyboard 0 Movement Mouse Keybinds 0 Fullscreen 1 Font 32/SmallcapsGlow Map View 50x35 Zoom Use 0% Tactical HUD 1 Map Filters NONE Filters NONE Steam 1 RUN: 1a0d7a0b-c953-4322-b712-7484a02a8ce7